bitfinex/quotes_BTCUSD_20241018
["timestamp","ask_amount","ask_price","bid_price","bid_amount"]
[1729288946811,0.14895915,68344.0,68342.0,0.1]
[1729288947013,0.20818837,68344.0,68342.0,0.1]
[1729288947245,0.16458569,68344.0,68342.0,0.1]
[1729288947858,0.16458569,68344.0,68333.0,0.1]
[1729288948068,0.20817476,68344.0,68333.0,0.1]
[1729288948525,0.002,68341.0,68333.0,0.1]
[1729288948723,0.01562627,68340.0,68333.0,0.1]
[1729288949331,0.01562627,68340.0,68320.0,0.0832]
[1729288949332,0.14895915,68339.0,68326.0,0.1]
[1729288949568,0.0909,68337.0,68327.0,0.21988493]
[1729288949790,0.14895915,68336.0,68327.0,0.21988493]
[1729288950008,0.16458515,68336.0,68327.0,0.21988493]
[1729288950756,0.16458515,68336.0,68328.0,0.1]
[1729288953494,0.20812843,68336.0,68328.0,0.1]
[1729288953690,0.16458515,68336.0,68328.0,0.1]
[1729288954178,0.20812843,68336.0,68328.0,0.1]
[1729288954403,0.16458515,68336.0,68328.0,0.1]
[1729288954959,0.0821,68335.0,68321.0,0.02289248]
[1729288955257,0.17830757,68334.0,68327.0,0.1]
[1729288956518,0.00219465,68331.0,68327.0,0.1]
[1729288956716,0.0320146,68330.0,68327.0,0.1]
[1729288956922,0.01361647,68329.0,68327.0,0.1]
[1729288957123,0.01839797,68328.0,68321.0,0.02289248]
[1729288957333,0.01361647,68327.0,68321.0,0.02289248]
[1729288957534,0.02723376,68326.0,68321.0,0.02289248]
[1729288957816,0.01361729,68325.0,68321.0,0.02289248]
[1729288958040,0.01361729,68324.0,68321.0,0.02289248]
[1729288958275,0.01361729,68323.0,68321.0,0.02289248]
[1729288958531,0.01839765,68324.0,68321.0,0.02289248]
[1729288958532,0.01361729,68322.0,68321.0,0.02289248]
[1729288959001,0.03201477,68322.0,68319.0,0.1]
[1729288959238,0.01839748,68322.0,68319.0,0.1]
[1729288959897,0.14895915,68328.0,68319.0,0.1]
[1729288960149,0.0320172,68327.0,68315.0,0.02289435]
[1729288960385,0.01361931,68326.0,68318.0,0.21988493]
[1729288960671,0.01361931,68325.0,68319.0,0.1]
[1729288960888,0.01361931,68324.0,68319.0,0.1]
[1729288961029,0.01361931,68323.0,68319.0,0.1]
[1729288961265,0.01361931,68322.0,68319.0,0.1]
[1729288961466,0.0320207,68321.0,68319.0,0.1]
[1729288961664,0.02178767,68327.0,68315.0,0.02289435]
[1729288961982,0.03202112,68326.0,68315.0,0.02289435]
[1729288962182,0.01362331,68325.0,68315.0,0.02289435]
[1729288962390,0.01362331,68324.0,68315.0,0.02289435]
[1729288962566,0.01362331,68323.0,68315.0,0.02289435]
[1729288962766,0.01362331,68322.0,68315.0,0.02289435]
[1729288962977,0.01362331,68321.0,68315.0,0.02289435]
[1729288963264,0.14895915,68328.0,68315.0,0.02289435]
[1729288963265,0.02178767,68326.0,68315.0,0.02289435]
[1729288963468,0.03541787,68325.0,68315.0,0.02289435]
[1729288963671,0.0136302,68324.0,68315.0,0.02289435]
[1729288963855,0.0136302,68323.0,68315.0,0.02289435]
[1729288963986,0.0136302,68322.0,68315.0,0.02289435]
[1729288964191,0.0136302,68321.0,68315.0,0.02289435]
[1729288964405,0.0136302,68320.0,68315.0,0.02289435]
[1729288964626,0.0136302,68319.0,68315.0,0.02289435]
[1729288964848,0.0218082,68324.0,68315.0,0.02289435]
[1729288965050,0.0136338,68323.0,68319.0,0.001656]
[1729288965253,0.0136338,68322.0,68319.0,0.001656]
[1729288965602,0.0136338,68321.0,68319.0,0.001656]
[1729288965817,0.0136338,68320.0,68319.0,0.001656]
[1729288966080,0.21647685,68335.0,68319.0,0.082056]
[1729288966273,0.01839732,68320.0,68319.0,0.082056]
[1729288967141,0.39288493,68335.0,68319.0,0.082056]
[1729288967347,0.05382504,68334.0,68319.0,0.082056]
[1729288967568,0.013631,68333.0,68319.0,0.082056]
[1729288967782,0.013631,68332.0,68321.0,0.1]
[1729288967984,0.013631,68331.0,68321.0,0.1]
[1729288968210,0.013631,68330.0,68321.0,0.1]
[1729288968387,0.013631,68329.0,68321.0,0.1]
[1729288968587,0.0761,68339.0,68321.0,0.1]
[1729288968802,0.19530758,68338.0,68321.0,0.1]
[1729288969000,0.04634843,68337.0,68321.0,0.1]
[1729288969223,0.19530758,68336.0,68321.0,0.1]
[1729288969445,0.03544292,68335.0,68321.0,0.1]
[1729288969599,0.01363192,68334.0,68321.0,0.1]
[1729288969821,0.03,68330.0,68321.0,0.1]
[1729288970233,0.01363206,68329.0,68321.0,0.1]
[1729288970437,0.01363206,68328.0,68321.0,0.1]
[1729288970590,0.03,68330.0,68321.0,0.1]
[1729288970800,0.0136329,68329.0,68319.0,0.001656]
[1729288971011,0.1876329,68328.0,68319.0,0.001656]
[1729288971219,0.03202763,68327.0,68319.0,0.001656]
[1729288971433,0.0136329,68326.0,68319.0,0.001656]
[1729288971653,0.174,68328.0,68319.0,0.001656]
[1729288971654,0.03202746,68325.0,68319.0,0.001656]
[1729288971878,0.0136329,68324.0,68319.0,0.001656]
[1729288972078,0.0136329,68323.0,68319.0,0.001656]
[1729288972293,0.01363004,68322.0,68319.0,0.001656]
[1729288972505,0.01839432,68322.0,68319.0,0.001656]
[1729288972701,0.174,68328.0,68319.0,0.001656]
[1729288972926,0.01839424,68321.0,68319.0,0.001656]
[1729288973142,0.02180718,68326.0,68319.0,0.001656]
[1729288973422,0.01839416,68320.0,68319.0,0.001656]
[1729288973626,0.0320236,68320.0,68319.0,0.001656]
[1729288975031,0.03202529,68320.0,68319.0,0.001656]
[1729288976140,0.01839416,68320.0,68319.0,0.078456]
[1729288976348,0.02181461,68329.0,68319.0,0.078456]
[1729288976550,0.01837944,68320.0,68319.0,0.078456]
[1729288976720,0.02181847,68332.0,68319.0,0.078456]
[1729288976946,0.01837944,68320.0,68319.0,0.078456]
[1729288977220,0.19532127,68331.0,68319.0,0.078456]
[1729288977221,0.02181739,68330.0,68319.0,0.078456]
[1729288977465,0.04636302,68329.0,68319.0,0.078456]
[1729288977679,0.04636302,68328.0,68319.0,0.078456]
[1729288977845,0.01363646,68327.0,68319.0,0.078456]
[1729288978047,0.03201639,68326.0,68319.0,0.078456]
[1729288978248,0.01363646,68325.0,68319.0,0.078456]
[1729288978448,0.01837977,68324.0,68319.0,0.078456]
[1729288978667,0.02182425,68329.0,68319.0,0.078456]
[1729288978854,0.01837969,68323.0,68319.0,0.078456]
[1729288979058,0.02182425,68329.0,68319.0,0.078456]
[1729288979373,0.05384378,68328.0,68319.0,0.078456]
[1729288979586,0.01363968,68327.0,68319.0,0.078456]
[1729288979751,0.01363968,68326.0,68319.0,0.078456]
[1729288980017,0.01363968,68325.0,68319.0,0.078456]
[1729288980151,0.01363968,68324.0,68319.0,0.078456]
[1729288980356,0.01838905,68324.0,68319.0,0.078456]
[1729288980675,0.03203148,68323.0,68319.0,0.078456]
[1729288980921,0.02182766,68329.0,68319.0,0.078456]
[1729288981138,0.01838883,68322.0,68319.0,0.078456]
[1729288981347,0.14895915,68330.0,68319.0,0.078456]
[1729288981554,0.01838875,68321.0,68320.0,0.31988493]
[1729288981758,0.01091423,68329.0,68321.0,0.1768]
[1729288981924,0.02183047,68337.0,68323.0,0.1768]
[1729288982125,0.04639023,68336.0,68325.0,0.1]
[1729288982488,0.01364431,68335.0,68325.0,0.1]
[1729288982716,0.01364431,68334.0,68325.0,0.1]
[1729288982947,0.01364431,68333.0,68325.0,0.1]
[1729288983204,0.01364431,68332.0,68323.0,0.1768]
[1729288983479,0.02182811,68340.0,68323.0,0.1768]
[1729288983480,0.02182811,68339.0,68325.0,0.1]
[1729288983672,0.04637948,68338.0,68325.0,0.1]
[1729288983959,0.01841349,68331.0,68325.0,0.1]
[1729288984191,0.04353826,68340.0,68325.0,0.1]
[1729288984438,0.21426654,68342.0,68327.0,0.1]
[1729288984439,0.0899078,68339.0,68327.0,0.1]
[1729288984709,0.0899078,68339.0,68326.0,0.21988493]
[1729288984710,0.0136378,68338.0,68335.0,0.0768]
[1729288984982,0.01842017,68339.0,68335.0,0.0768]
[1729288985238,0.01842017,68339.0,68323.0,0.02113292]
[1729288985239,0.18101902,68338.0,68323.0,0.02113292]
[1729288985472,0.04353826,68334.0,68327.0,0.21988493]
[1729288985707,0.08990483,68333.0,68327.0,0.21988493]
[1729288985936,0.01363775,68332.0,68327.0,0.21988493]
[1729288986250,0.01363775,68331.0,68327.0,0.21988493]
[1729288986499,0.01363775,68330.0,68327.0,0.21988493]
[1729288986751,0.01363775,68329.0,68319.0,0.12332208]
[1729288987000,0.01363775,68328.0,68319.0,0.12332208]
[1729288987222,0.01842175,68329.0,68319.0,0.12332208]
[1729288987477,0.09452158,68327.0,68319.0,0.02332208]
[1729288987711,0.04359208,68325.0,68319.0,0.02332208]
[1729288987944,0.05722751,68324.0,68319.0,0.02332208]
[1729288988167,0.04359208,68322.0,68319.0,0.001656]
[1729288988406,0.24980369,68321.0,68319.0,0.001656]
[1729288988637,0.023,68319.0,68315.0,0.001656]
[1729288988945,0.20755546,68320.0,68318.0,0.21988493]
[1729288989198,0.20755546,68320.0,68315.0,0.001656]
[1729288989199,0.01363208,68318.0,68315.0,0.001656]
[1729288989456,0.03271707,68317.0,68315.0,0.001656]
[1729288989716,0.0763016,68317.0,68316.0,0.21988493]
[1729288989955,0.0435978,68319.0,68317.0,0.1]
[1729288990202,0.08719081,68323.0,68317.0,0.1]
[1729288990203,0.01362953,68318.0,68317.0,0.1]
[1729288990994,0.0435978,68324.0,68315.0,0.001656]
[1729288991215,0.01362973,68323.0,68315.0,0.001656]
[1729288991437,0.04360895,68326.0,68315.0,0.001656]
[1729288991658,0.0136303,68325.0,68315.0,0.001656]
[1729288991875,0.21988493,68324.0,68315.0,0.001656]
[1729288992098,0.04360895,68319.0,68315.0,0.001656]
[1729288992351,0.04360895,68317.0,68315.0,0.001656]
[1729288992569,0.06541343,68317.0,68315.0,0.001656]
[1729288992804,0.01839294,68316.0,68315.0,0.001656]
[1729288993284,0.08380637,68316.0,68315.0,0.001656]
[1729288993500,0.01839294,68316.0,68315.0,0.001656]
[1729288993946,0.07562601,68316.0,68315.0,0.001656]
[1729288994155,0.03201794,68316.0,68315.0,0.001656]
[1729288994620,0.01839294,68316.0,68315.0,0.001656]
[1729288995057,0.04360807,68320.0,68315.0,0.001656]
[1729288995276,0.01833629,68316.0,68315.0,0.001656]
[1729288995499,0.04360807,68320.0,68315.0,0.001656]
[1729288995725,0.01833629,68316.0,68315.0,0.001656]
[1729288995947,0.04360807,68320.0,68315.0,0.001656]
[1729288996255,0.01833629,68316.0,68315.0,0.001656]
[1729288996458,0.04360807,68320.0,68315.0,0.001656]
[1729288996669,0.08721791,68324.0,68315.0,0.001656]
[1729288996670,0.01833629,68316.0,68315.0,0.001656]
[1729288996884,0.05723166,68316.0,68315.0,0.001656]
[1729288997091,0.03196698,68316.0,68315.0,0.001656]
[1729288997298,0.01834339,68316.0,68315.0,0.001656]
[1729288997531,0.031966,68316.0,68315.0,0.001656]
[1729288999454,0.01834339,68316.0,68315.0,0.001656]
[1729288999895,0.0987,68328.0,68315.0,0.001656]
[1729289000092,0.01650387,68316.0,68315.0,0.001656]
[1729289000364,0.0987,68328.0,68315.0,0.001656]
[1729289000614,0.01650387,68316.0,68315.0,0.001656]
[1729289000830,0.01362189,68316.0,68315.0,0.001656]
[1729289001041,0.09555146,68316.0,68315.0,0.001656]
[1729289002146,0.10533543,68316.0,68315.0,0.001656]
[1729289002375,0.35299458,68316.0,68315.0,0.001656]
[1729289002639,0.57161359,68316.0,68315.0,0.001656]
[1729289002861,0.6170019,68316.0,68315.0,0.001656]
[1729289003084,0.1739,68314.0,68305.0,0.001656]
[1729289003298,0.58959412,68314.0,68305.0,0.001656]
[1729289003515,0.5606938,68314.0,68305.0,0.001656]
[1729289003735,0.1739,68312.0,68305.0,0.001656]
[1729289003996,0.1969,68306.0,68305.0,0.001656]
[1729289004230,0.3593391,68306.0,68305.0,0.001656]
[1729289004439,0.39759713,68306.0,68305.0,0.001656]
[1729289004647,0.50644591,68306.0,68305.0,0.001656]
[1729289005090,0.39759713,68306.0,68305.0,0.001656]
[1729289005523,0.23666486,68306.0,68305.0,0.001656]
[1729289005731,0.42911462,68306.0,68305.0,0.001656]
[1729289005938,0.41822968,68306.0,68305.0,0.001656]
[1729289006396,0.35294657,68306.0,68305.0,0.001656]
[1729289007074,0.42911086,68306.0,68305.0,0.001656]
[1729289007317,0.35294657,68306.0,68305.0,0.001656]
[1729289007788,0.07354647,68306.0,68305.0,0.001656]
[1729289008001,0.01646553,68306.0,68305.0,0.001656]
[1729289008485,0.0435176,68311.0,68305.0,0.001656]
[1729289008486,0.0435176,68311.0,68307.0,0.1]
[1729289008731,0.0435176,68310.0,68307.0,0.1]
[1729289008951,0.0455176,68308.0,68307.0,0.1]
[1729289009185,0.08707761,68312.0,68307.0,0.1]
[1729289009186,0.0435176,68309.0,68307.0,0.1]
[1729289009391,0.0455176,68311.0,68305.0,0.001656]
[1729289009607,0.17195915,68310.0,68307.0,0.1]
[1729289009815,0.0665176,68308.0,68307.0,0.1]
[1729289010024,0.21547675,68308.0,68307.0,0.1]
[1729289010458,0.14895915,68308.0,68305.0,0.001656]
[1729289010693,0.14895915,68307.0,68305.0,0.101656]
[1729289010941,0.14895915,68307.0,68306.0,0.21988493]
[1729289011172,0.14895915,68307.0,68306.0,0.1]
[1729289012123,0.16372393,68307.0,68306.0,0.1]
[1729289012347,0.16372393,68307.0,68305.0,0.001656]
[1729289014553,0.1977,68306.0,68305.0,0.001656]
[1729289014762,0.36142594,68306.0,68305.0,0.001656]
[1729289015399,0.3723045,68306.0,68305.0,0.001656]
[1729289015618,0.3723045,68306.0,68288.0,0.001656]
[1729289015619,0.101,68298.0,68288.0,0.001656]
[1729289015849,0.103,68298.0,68297.0,0.21988493]
[1729289016075,0.103,68298.0,68289.0,0.22154093]
[1729289016076,0.023,68292.0,68289.0,0.22154093]
[1729289016281,0.18489685,68290.0,68289.0,0.22154093]
[1729289016504,0.16314085,68290.0,68289.0,0.22154093]
[1729289016749,0.32297083,68290.0,68289.0,0.001656]
[1729289016966,0.34471249,68290.0,68289.0,0.001656]
[1729289017411,0.30127164,68290.0,68289.0,0.001656]
[1729289018713,0.30127164,68290.0,68285.0,0.02767245]
[1729289018973,0.18157164,68289.0,68285.0,0.02767245]
[1729289019236,0.01087083,68288.0,68285.0,0.02767245]
[1729289019452,0.14895915,68287.0,68285.0,0.02767245]
[1729289019706,0.164119,68287.0,68285.0,0.02767245]
[1729289019921,0.01357752,68286.0,68285.0,0.02767245]
[1729289020134,0.17769644,68286.0,68285.0,0.02767245]
[1729289020402,0.17769689,68286.0,68285.0,0.02767245]
[1729289021090,0.01515977,68286.0,68285.0,0.02767245]
[1729289021538,0.00219593,68291.0,68285.0,0.02767245]
[1729289021794,0.01509225,68286.0,68285.0,0.02767245]
[1729289022005,0.14895915,68291.0,68285.0,0.02767245]
[1729289022227,0.01509225,68286.0,68285.0,0.02767245]
[1729289022439,0.14895915,68291.0,68285.0,0.02767245]
[1729289022651,0.01509225,68286.0,68285.0,0.02767245]
[1729289022863,0.14895915,68291.0,68285.0,0.02767245]
[1729289023077,0.01509225,68286.0,68285.0,0.02767245]
[1729289023288,0.14895915,68291.0,68285.0,0.02767245]
[1729289023510,0.01509225,68286.0,68285.0,0.02767245]
[1729289023721,0.14895915,68291.0,68285.0,0.02767245]
[1729289023932,0.01504601,68286.0,68285.0,0.02767245]
[1729289024148,0.14895915,68291.0,68285.0,0.02767245]
[1729289024389,0.01504601,68286.0,68285.0,0.02767245]
[1729289024619,0.14895915,68286.0,68285.0,0.02767245]
[1729289024842,0.16400516,68286.0,68285.0,0.02767245]
[1729289025744,0.20258358,68286.0,68285.0,0.02767245]
[1729289025950,0.39972236,68286.0,68285.0,0.02767245]
[1729289026375,0.39972151,68286.0,68285.0,0.02767245]
[1729289026593,0.023,68285.0,68274.0,0.21988493]
[1729289026804,0.023,68283.0,68274.0,0.21988493]
[1729289026991,0.17339839,68282.0,68281.0,0.1]
[1729289027234,0.0394755,68282.0,68281.0,0.1]
[1729289027464,0.01503626,68282.0,68281.0,0.1]
[1729289027891,0.21988493,68291.0,68282.0,0.1]
[1729289028317,0.01353154,68290.0,68282.0,0.1]
[1729289028750,0.078,68297.0,68282.0,0.1]
[1729289028963,0.078,68297.0,68284.0,0.1]
[1729289028964,0.16254298,68296.0,68284.0,0.1]
[1729289029217,0.01358383,68295.0,68284.0,0.1]
[1729289029445,0.01358383,68294.0,68285.0,0.000828]
[1729289029660,0.01358383,68293.0,68285.0,0.000828]
[1729289030133,0.0135317,68292.0,68285.0,0.000828]
[1729289030351,0.01358383,68291.0,68285.0,0.000828]
[1729289030572,0.01358383,68291.0,68287.0,0.1]
[1729289030573,0.01358383,68290.0,68287.0,0.1]
[1729289031006,0.4784,68300.0,68287.0,0.1]
[1729289031226,0.01353146,68289.0,68287.0,0.1]
[1729289031444,0.14895915,68299.0,68287.0,0.1]
[1729289031683,0.14895915,68299.0,68285.0,0.000828]
[1729289031684,0.0244823,68298.0,68285.0,0.000828]
[1729289031940,0.01360128,68297.0,68285.0,0.000828]
[1729289032141,0.01360128,68296.0,68287.0,0.1]
[1729289032355,0.0244823,68295.0,68287.0,0.1]
[1729289032573,0.0244823,68294.0,68287.0,0.1]
[1729289032825,0.17344145,68293.0,68287.0,0.1]
[1729289033065,0.0244823,68292.0,68289.0,0.1]
[1729289033321,0.16256043,68291.0,68289.0,0.1]
[1729289033530,0.01360128,68290.0,68289.0,0.1]
[1729289033762,0.02713282,68290.0,68289.0,0.1]
[1729289033986,0.02713282,68290.0,68285.0,0.000828]
[1729289034206,0.01360128,68289.0,68285.0,0.000828]
[1729289034439,0.01360128,68288.0,68285.0,0.000828]
[1729289034676,0.01360128,68287.0,68285.0,0.000828]
[1729289034919,0.01353138,68288.0,68286.0,0.1]
[1729289035152,0.02175353,68295.0,68287.0,0.1]
[1729289035381,0.02449612,68294.0,68287.0,0.1]
[1729289035610,0.01360902,68293.0,68287.0,0.1]
[1729289035822,0.01360902,68292.0,68287.0,0.1]
[1729289036028,0.14895915,68297.0,68287.0,0.1]
[1729289036238,0.01360954,68296.0,68285.0,0.000828]
[1729289036457,0.01360954,68295.0,68285.0,0.000828]
[1729289036663,0.01360954,68294.0,68285.0,0.000828]
[1729289036887,0.01360954,68293.0,68285.0,0.000828]
[1729289037173,0.01360954,68292.0,68285.0,0.000828]
[1729289037392,0.14895915,68296.0,68285.0,0.000828]
[1729289037615,0.00219592,68292.0,68285.0,0.000828]
[1729289038288,0.02718059,68291.0,68285.0,0.000828]
[1729289038547,0.01356673,68291.0,68285.0,0.000828]
[1729289039259,0.14895915,68296.0,68285.0,0.000828]
[1729289039527,0.01360188,68290.0,68285.0,0.000828]
[1729289039766,0.14895915,68296.0,68285.0,0.000828]
[1729289040034,0.01360159,68289.0,68285.0,0.000828]
[1729289040256,0.16257518,68295.0,68285.0,0.000828]
[1729289040257,0.0136159,68288.0,68285.0,0.000828]
[1729289040493,0.0136159,68287.0,68285.0,0.000828]
[1729289040731,0.01360151,68288.0,68285.0,0.000828]
[1729289040732,0.0136159,68286.0,68285.0,0.000828]
[1729289040987,0.02721724,68286.0,68285.0,0.000828]
[1729289042663,0.02722207,68286.0,68285.0,0.000828]
[1729289042932,0.23186915,68286.0,68285.0,0.000828]
[1729289043163,0.023,68285.0,68275.0,0.21988493]
[1729289043380,0.04350887,68280.0,68275.0,0.21988493]
[1729289043637,0.19526781,68279.0,68275.0,0.21988493]
[1729289043865,0.04630866,68278.0,68270.0,0.02148227]
[1729289044079,0.28736781,68277.0,68270.0,0.02148227]
[1729289044309,0.28736781,68277.0,68268.0,0.1]
[1729289044310,0.04630866,68276.0,68268.0,0.1]
[1729289044539,0.19526781,68275.0,68268.0,0.1]
[1729289044774,0.01362073,68274.0,68268.0,0.1]
[1729289044996,0.01362073,68273.0,68268.0,0.1]
[1729289045221,0.01362073,68272.0,68268.0,0.1]
[1729289045433,0.01362073,68271.0,68268.0,0.1]
[1729289045652,0.01362073,68270.0,68268.0,0.1]
[1729289045872,0.01357859,68270.0,68268.0,0.1]
[1729289046087,0.01357859,68270.0,68265.0,0.03]
[1729289046300,0.02179318,68280.0,68265.0,0.03]
[1729289046530,0.04631129,68279.0,68265.0,0.03]
[1729289046742,0.02451811,68278.0,68268.0,0.1]
[1729289046956,0.01362117,68277.0,68268.0,0.1]
[1729289047190,0.2633938,68282.0,68268.0,0.1]
[1729289047191,0.01362117,68276.0,68268.0,0.1]
[1729289047414,0.01362117,68275.0,68269.0,0.0773]
[1729289047635,0.21988493,68283.0,68269.0,0.0773]
[1729289047850,0.01362204,68282.0,68269.0,0.0773]
[1729289048056,0.01362204,68282.0,68271.0,0.1]
[1729289048057,0.01362204,68281.0,68271.0,0.1]
[1729289048286,0.01362204,68280.0,68271.0,0.1]
[1729289048502,0.01362204,68279.0,68271.0,0.1]
[1729289048745,0.01362204,68278.0,68271.0,0.1]
[1729289048959,0.01362204,68277.0,68271.0,0.1]
[1729289049175,0.01362204,68277.0,68262.0,0.1]
[1729289049176,0.01362204,68276.0,68262.0,0.1]
[1729289049381,0.01353316,68276.0,68269.0,0.1]
[1729289049592,0.0785,68281.0,68269.0,0.1]
[1729289049860,0.01353308,68275.0,68269.0,0.1]
[1729289050085,0.04354213,68282.0,68269.0,0.1]
[1729289050306,0.093758,68292.0,68269.0,0.24895915]
[1729289050307,0.013533,68274.0,68269.0,0.24895915]
[1729289050520,0.01362222,68281.0,68269.0,0.24895915]
[1729289050521,0.04354364,68287.0,68269.0,0.24895915]
[1729289050731,0.02452164,68286.0,68269.0,0.24895915]
[1729289050986,0.01362315,68285.0,68269.0,0.24895915]
[1729289051216,0.01362315,68284.0,68269.0,0.24895915]
[1729289051475,0.38246723,68283.0,68262.0,0.1]
[1729289051725,0.01362315,68282.0,68271.0,0.1]
[1729289051971,0.002,68280.0,68271.0,0.1]
[1729289052220,0.2527823,68279.0,68271.0,0.1]
[1729289052454,0.04631739,68278.0,68272.0,0.21988493]
[1729289052694,0.1625823,68277.0,68273.0,0.1]
[1729289052914,0.01362315,68276.0,68273.0,0.1]
[1729289053133,0.1625823,68275.0,68273.0,0.1]
[1729289053362,0.16250352,68275.0,68273.0,0.1]
[1729289053812,0.16250352,68275.0,68271.0,0.000829]
[1729289054330,0.01354437,68275.0,68272.0,0.21988493]
[1729289054548,0.01354437,68275.0,68271.0,0.000829]
[1729289054788,0.0785,68281.0,68271.0,0.000829]
[1729289055010,0.01354429,68274.0,68271.0,0.000829]
[1729289055758,0.01361904,68273.0,68271.0,0.000829]
[1729289056003,0.0653435,68279.0,68271.0,0.000829]
[1729289056235,0.01354413,68272.0,68271.0,0.000829]
[1729289056477,0.14895915,68278.0,68271.0,0.000829]
[1729289056691,0.01354413,68272.0,68271.0,0.000829]
[1729289056919,0.14895915,68278.0,68271.0,0.000829]
[1729289057150,0.01354413,68272.0,68271.0,0.000829]
[1729289057682,0.04355246,68280.0,68271.0,0.000829]
[1729289057908,0.01352414,68272.0,68271.0,0.000829]
[1729289058127,0.04355246,68280.0,68271.0,0.000829]
[1729289058335,0.05717332,68279.0,68271.0,0.000829]
[1729289058551,0.01362086,68278.0,68271.0,0.000829]
[1729289058798,0.01362086,68277.0,68271.0,0.000829]
[1729289059024,0.01352733,68277.0,68271.0,0.000829]
[1729289059473,0.04358821,68285.0,68276.0,0.1]
[1729289059684,0.01362283,68284.0,68276.0,0.1]
[1729289059910,0.001658,68286.0,68276.0,0.1]
[1729289060123,0.01362299,68285.0,68276.0,0.1]
[1729289060339,0.01362299,68284.0,68278.0,0.21988493]
[1729289060555,0.001658,68286.0,68280.0,0.0825]
[1729289062166,0.0136199,68285.0,68271.0,0.000829]
[1729289062378,0.0136199,68284.0,68278.0,0.1]
[1729289062560,0.04524621,68286.0,68278.0,0.1]
[1729289062561,0.0136199,68283.0,68278.0,0.1]
[1729289062804,0.06704031,68286.0,68278.0,0.1]
[1729289062805,0.04358821,68284.0,68278.0,0.1]
[1729289063012,0.01362165,68283.0,68278.0,0.1]
[1729289063224,0.04358821,68285.0,68278.0,0.1]
[1729289063431,0.01362545,68284.0,68271.0,0.02243882]
[1729289063647,0.01362545,68283.0,68276.0,0.1]
[1729289063874,0.04358821,68284.0,68276.0,0.1]
[1729289064090,0.001658,68286.0,68276.0,0.1]
[1729289064526,0.001658,68286.0,68277.0,0.21988493]
[1729289064743,0.001658,68286.0,68279.0,0.0825]
[1729289065267,0.001658,68286.0,68285.0,0.1]
[1729289065507,0.001658,68286.0,68285.0,2.16901115]
[1729289065936,0.001658,68286.0,68285.0,2.19201115]
[1729289068753,0.001658,68286.0,68285.0,1.77723415]
[1729289071167,0.001658,68286.0,68285.0,0.78989615]
[1729289072288,0.001658,68292.0,68285.0,0.78989615]
[1729289072509,0.001658,68292.0,68287.0,0.1]
[1729289072767,0.001658,68292.0,68290.0,0.0758]
[1729289072979,0.001658,68292.0,68291.0,3.45453115]
[1729289073414,0.001658,68292.0,68291.0,3.55453115]
[1729289073632,0.001658,68292.0,68291.0,3.57753115]
[1729289073875,0.001658,68292.0,68291.0,3.76796509]
[1729289074120,0.001658,68292.0,68291.0,3.72273115]
[1729289074322,0.001658,68292.0,68291.0,0.81174915]
[1729289074545,0.001658,68292.0,68291.0,0.71934915]
[1729289075981,0.001658,68292.0,68285.0,0.02159059]
[1729289076213,0.001658,68292.0,68273.0,0.0924]
[1729289076214,0.001658,68292.0,68286.0,0.21988493]
[1729289076675,0.001658,68292.0,68276.0,0.21988493]
[1729289076676,0.01370235,68291.0,68276.0,0.21988493]
[1729289076877,0.01370235,68291.0,68283.0,0.21988493]
[1729289077143,0.001658,68292.0,68276.0,0.36884408]
[1729289077355,0.001658,68292.0,68277.0,0.382727]
[1729289077356,0.14895915,68291.0,68277.0,0.382727]
[1729289077566,0.14895915,68291.0,68277.0,0.21988493]
[1729289077821,0.14895915,68291.0,68271.0,0.000829]
[1729289077822,0.1722,68289.0,68271.0,0.000829]
[1729289078038,0.023,68286.0,68275.0,0.21988493]
[1729289078260,0.14895915,68285.0,68275.0,0.21988493]
[1729289078471,0.01367601,68285.0,68275.0,0.21988493]
[1729289078909,0.21988493,68281.0,68271.0,0.000829]
[1729289079143,0.14895915,68280.0,68271.0,0.000829]
[1729289079355,0.01358148,68280.0,68276.0,0.21988493]
[1729289079564,0.01358148,68280.0,68271.0,0.000829]
[1729289079778,0.0763,68286.0,68271.0,0.000829]
[1729289079992,0.0135814,68279.0,68271.0,0.000829]
[1729289080224,0.22525915,68286.0,68271.0,0.000829]
[1729289080495,0.36884408,68285.0,68271.0,0.000829]
[1729289080710,0.36884408,68285.0,68272.0,0.1]
[1729289080711,0.1625302,68285.0,68272.0,0.1]
[1729289081832,0.21988493,68282.0,68271.0,0.000829]
[1729289082077,0.1625302,68285.0,68271.0,0.000829]
[1729289082078,0.14895915,68281.0,68271.0,0.000829]
[1729289082309,0.14895915,68281.0,68273.0,0.1]
[1729289082310,0.1722,68280.0,68273.0,0.1]
[1729289082530,0.14895915,68279.0,68273.0,0.1]
[1729289082747,0.16252971,68279.0,68273.0,0.1]
[1729289083268,0.16252971,68279.0,68271.0,0.000829]
[1729289083516,0.16452971,68279.0,68271.0,0.000829]
[1729289083733,0.16252971,68279.0,68271.0,0.000829]
[1729289084158,0.16252971,68279.0,68273.0,0.1]
[1729289084373,0.16252971,68279.0,68277.0,0.1]
[1729289084615,0.01357056,68279.0,68277.0,0.1]
[1729289085967,0.01357056,68279.0,68271.0,0.000829]
[1729289086173,0.01357056,68279.0,68273.0,0.1]
[1729289086593,0.17195915,68278.0,68273.0,0.1]
[1729289086819,0.0763,68277.0,68273.0,0.1]
[1729289087026,0.14895915,68276.0,68273.0,0.1]
[1729289087449,0.16252947,68276.0,68271.0,0.000829]
[1729289088266,0.24288493,68275.0,68271.0,0.000829]
[1729289088269,0.023,68273.0,68271.0,0.000829]
[1729289088477,0.17195915,68272.0,68271.0,0.000829]
[1729289088707,0.1625049,68272.0,68271.0,0.000829]
[1729289091602,0.26370146,68272.0,68271.0,0.000829]
[1729289092970,0.24070146,68272.0,68271.0,0.000829]
[1729289093202,0.2385049,68272.0,68271.0,0.000829]
[1729289097152,0.01354575,68272.0,68271.0,0.000829]
[1729289097730,0.0817,68279.0,68271.0,0.000829]
[1729289097941,0.14895915,68278.0,68271.0,0.000829]
[1729289098179,0.16245019,68278.0,68271.0,0.000829]
[1729289100758,0.16245019,68278.0,68273.0,0.1]